Cogmind - Beta 15 @@@ ROGUE MODE // 2025.05.25 @ 18:51:03 Player: Skysub Result: Destroyed by 4F-IZH(R) with Subdweller Beam Cannon Performance ------------- Evolutions (0) 0 Regions Visited (2) 400 Robots Destroyed (11) 55 Value Destroyed (401) 401 Prototype IDs (11) 220 Alien Tech Used (0) 0 Bonus (0) 0 TOTAL SCORE: 1076 Bonus ------- None Cogmind --------- Core Integrity 0/250 Matter 296/300 Energy 100/100 System Corruption 3% Temperature Cool (9) Movement Rolling (110) Location -10/Subcaves Parts ------- > --- POWER (1) -------- (None) > --- PROPULSION (2) --- Subdweller Monowheel > --- UTILITY (2) ------ Small Storage Unit Gun Armor > --- WEAPON (2+2) ----- Subdweller Machine Gun > --- INVENTORY (8) ---- Subdweller Power Source Subdweller Monowheel Subdweller Optics Subdweller Optics Cobbler Unit Multitool Peak State ------------ > --- POWER ------------ Subdweller Power Source > --- PROPULSION ------- Light Treads Subdweller Monowheel > --- UTILITY ---------- Small Storage Unit Gun Armor > --- WEAPON ----------- Subdweller Machine Gun Flamer > --- INVENTORY -------- Subdweller Power Source Subdweller Monowheel Subdweller Optics Subdweller Optics Cobbler Unit Multitool [Rating: 20] Favorites ----------- Power Subdweller Power Source Engine Subdweller Power Source Propulsion Light Treads Treads Light Treads Wheel Subdweller Monowheel Utility Small Storage Unit Device Structural Scanner Storage Small Storage Unit Protection Gun Armor Weapon Assault Rifle Ballistic Gun Assault Rifle Launcher Grenade Launcher Special Weapon Mining Laser Build | -11 -10 -10 ------- Run | Yrd Mat Sub Slots Evolved . | . . . Power . | . . . Propulsion . | . . . Utility . | . . . Weapon . | . . . Parts Attached 19 | 6 2 11 Power 2 | 1 . 1 Engine 2 | 1 . 1 Core . | . . . Reactor . | . . . Propulsion 5 | 2 . 3 Treads 3 | 2 . 1 Leg . | . . . Wheel 2 | . . 2 Hover . | . . . Flight . | . . . Utility 3 | 1 1 1 Device 1 | . 1 . Storage 1 | 1 . . Processor . | . . . Hackware . | . . . Protection 1 | . . 1 Artifact . | . . . Weapon 9 | 2 1 6 Energy Gun . | . . . Energy Cannon . | . . . Ballistic Gun 6 | 2 1 3 Ballistic Cannon . | . . . Launcher 1 | . . 1 Special Weapon 2 | . . 2 Impact Weapon . | . . . Slashing Weapon . | . . . Piercing Weapon . | . . . Special Melee Weapon . | . . . Unidentified Prototypes . | . . . Parts Lost 9 | . . 9 Power 1 | . . 1 Propulsion 2 | . . 2 Utility 1 | . . 1 Weapon 5 | . . 5 Highest Loss Streak 4 | . . 4 To Critical Strikes . | . . . Average Backups 7 | 3 7 7 Power . | . 1 1 Propulsion 2 | 3 4 1 Utility 1 | . . 2 Weapon 2 | . 2 1 Tool/Special . | . . . Unused Backups 13 | 1 1 11 Power 2 | . . 2 Propulsion 5 | . 1 4 Utility 3 | . . 3 Weapon 2 | 1 . 1 Tool/Special 1 | . . 1 Average Slot Usage (%) 90 | . 85 91 Engine 13 | . 14 13 Treads 25 | . 28 24 Wheel 1 | . . 1 Device 8 | . . 11 Storage 13 | . 14 13 Protection 1 | . . 1 Ballistic Gun 12 | . 28 5 Launcher 7 | . . 11 Special Weapon 4 | . . 6 Peak Build Rating 20 | 6 7 20 Average Rating 9 | 4 6 10 On Entrance 4 | . 6 7 Naked Turns . | . . . Heaviest Build 22 | 13 15 22 Greatest Support 40 | 40 40 40 Greatest Overweight (x) 1 | 1 . 1 Average Overweight (x) . | . . . Largest Inventory Capacity 8 | 8 8 8 Average Capacity 7 | 6 8 8 Most Carried 8 | 5 8 8 Average Carried 7 | 3 7 7 Final Capacity 8 | 8 8 8 Final Carried 8 | 5 8 7 Class Distribution -------------------- 100% | Mutant Dominant Class ---------------- Mutant | -10/Materials Mutant | -10/Subcaves Resources | -11 -10 -10 ----------- Run | Yrd Mat Sub Matter Collected 716 | 260 178 278 Remotely . | . . . Salvage Created 460 | . 231 229 Parts 34 | . 16 18 Haulers Intercepted . | . . . Recyclers Shooed . | . . . Parts Field Recycled . | . . . Retrieved Matter . | . . . Parts Self-Destructed 8 | . . 8 Prevented . | . . . Kills | -11 -10 -10 ------- Run | Yrd Mat Sub Combat Hostiles Destroyed 10 | . 5 5 Guns 8 | . 5 3 AOE 2 | . . 2 Classes Destroyed 3 | . 2 1 Builder 1 | . 1 . Grunt 5 | . 5 . Subdweller 5 | . . 5 Best Kill Streak 2 | . 2 2 Combat Bots Only 2 | . 2 2 Max Kills in Single Turn 1 | . 1 1 Gunslinging . | . . . Exploded 1 | . . 1 Melee . | . . . Uniques/NPCs Destroyed . | . . . Combat | -11 -10 -10 -------- Run | Yrd Mat Sub Hostile Shots Fired 95 | . 30 65 Missed 27 | . 6 21 Hits 68 | . 24 44 Projectile 68 | . 24 44 Critical Strikes 2 | . 1 1 Damage Taken 1421 | . 350 1071 Core 259 | . 30 229 Absorbed by Shields . | . . . Core Remaining (%) 100 | 100 . . Volleys Fired 56 | . 27 29 Largest 2 | . 2 2 Hottest 130 | . 40 130 Shots Fired 91 | . 54 37 Gun 76 | . 54 22 Cannon . | . . . Launcher 8 | . . 8 Special 7 | . . 7 Kinetic 76 | . 54 22 Thermal 7 | . . 7 Explosive 8 | . . 8 Electromagnetic . | . . . Robot Hit Streak 8 | . 7 8 Robot Miss Streak 3 | . 3 1 Penetration Max . | . . . Secondary Targets . | . . . Shots Hit Robots 56 | . 37 19 Core Hits 23 | . 12 11 Critical Kills . | . . . Critical Parts Destroyed 1 | . 1 . Critical Strikes 1 | . 1 . Destroy 1 | . 1 . Melee Attacks . | . . . Impact . | . . . Slashing . | . . . Piercing . | . . . Sneak Attacks . | . . . Combat Hostiles . | . . . Follow-up Attacks . | . . . Damage Inflicted 1014 | . 444 570 Guns 736 | . 444 292 Cannons . | . . . Explosions 278 | . . 278 Melee . | . . . Ramming . | . . . Kinetic 736 | . 444 292 Thermal . | . . . Explosive 278 | . . 278 Electromagnetic . | . . . Impact . | . . . Slashing . | . . . Piercing . | . . . Highest Corruption 3 | . 3 3 Average Corruption 2 | . 2 3 Corruption Purged . | . . . Corruption Blocked . | . . . Effects 30 | . 4 26 Message Errors 5 | . 1 4 Matter Fused 10 | . . 10 Heat Flow Errors 4 | . 1 3 Energy Discharges 5 | . . 5 Data Loss (minor) 3 | . 1 2 Data Loss (major) 2 | . 1 1 Misfires 1 | . . 1 Overload Shots . | . . . Overflow Damage . | . . . Projectiles . | . . . Explosions . | . . . Melee . | . . . Knockbacks . | . . . Impact . | . . . Kinetic . | . . . Secondary . | . . . Self-Inflicted Damage . | . . . Shots . | . . . Rammed . | . . . Targets Rammed . | . . . Kicked . | . . . Crushed . | . . . Highest Temperature 238 | . 160 238 Average Temperature 60 | . 27 119 Received Heat Transfer 414 | . 219 195 Siege Activations . | . . . Martial Activations . | . . . Shielding Activations . | . . . Robots Disrupted . | . . . Combat Hostiles . | . . . Robots Corrupted . | . . . Combat Hostiles . | . . . Parts Fried . | . . . Impact Corruptions . | . . . Robots Melted . | . . . Combat Hostiles . | . . . Parts Melted . | . . . Heat Transferred . | . . . Parts Sabotaged . | . . . Parts Stolen . | . . . Parts Stripped . | . . . Power Chain Reactions . | . . . Alert | -11 -10 -10 ------- Run | Yrd Mat Sub Maximum Alert Level . | . . . Low Security (%) 100 | 100 100 . Level 1 . | . . . Level 2 . | . . . Level 3 . | . . . Level 4 . | . . . Level 5 . | . . . High Security . | . . . Max Security . | . . . Peak Influence 85 | . 85 . Initial . | . . . Average 21 | . 24 . Influence Increases 185 | . 185 . Destroy 0b10 Robot/C 100 | . 100 . Destroy 0b10 Robot/NC 5 | . 5 . Destroy Leader 30 | . 30 . Successful Hack 5 | . 5 . Select Force Hacks 30 | . 30 . Lose Combat Pursuer 15 | . 15 . Influence Decreases 185 | . 160 25 Entered New Map 13 | . . 13 Time Decay 172 | . 160 12 Squads Dispatched 1 | . 1 . Investigation 1 | . 1 . Extermination . | . . . Reinforcement . | . . . Assault . | . . . Garrison . | . . . Intercept . | . . . Searches Triggered . | . . . Construction Impeded . | . . . Haulers Reinforced . | . . . Active Scanning Responses . | . . . Cargo Convoy Interrupts . | . . . Stealth | -11 -10 -10 --------- Run | Yrd Mat Sub Distress Signals 2 | . 2 . Communications Jammed . | . . . Distress Signals . | . . . Times Spotted 16 | . 7 9 Peak Tracking Total 3 | . 3 3 Tactical Retreats 1 | . 1 . Traps | -11 -10 -10 ------- Run | Yrd Mat Sub Traps Triggered 4 | . 2 2 Indirectly . | . . . Trap Hack Attempts . | . . . Triggered . | . . . Disarmed . | . . . Reprogrammed . | . . . Reused . | . . . Traps Extracted . | . . . Installed . | . . . Triggered . | . . . Machines | -11 -10 -10 ---------- Run | Yrd Mat Sub Machines Disabled 1 | . . 1 Max in Single Turn 1 | . . 1 Machines Repaired . | . . . Machines Dismantled . | . . . Machines Sabotaged . | . . . Overloaded Fab Kills . | . . . Hacking | -11 -10 -10 --------- Run | Yrd Mat Sub Machines Accessed 7 | . 5 2 Terminals 4 | . 4 . Fabricators . | . . . Repair Stations . | . . . Recycling Units 1 | . 1 . Scanalyzers . | . . . Garrison Access . | . . . Total Hacks 20 | . 13 7 Successful 14 | . 7 7 Failed 6 | . 6 . Catastrophic . | . . . Database Lockouts . | . . . Manual 8 | . 8 . Terminals 11 | . 11 . Fabricators . | . . . Repair Stations . | . . . Recycling Units 2 | . 2 . Scanalyzers . | . . . Garrison Access . | . . . Terminal Hacks 9 | . 2 7 Record 6 | . . 6 Emergency Access Points 1 | . 1 . Zone Layout 1 | . 1 . Proto ID Catalog 1 | . . 1 Fabricator Hacks . | . . . Repair Station Hacks . | . . . Recycling Unit Hacks 1 | . 1 . Report Inventory 1 | . 1 . Scanalyzer . | . . . Garrison Access Hacks . | . . . Unauthorized Hacks 4 | . 4 . Terminals 3 | . 3 . Botnet 3 | . 3 . Fabricators . | . . . Repair Stations . | . . . Recycling Units 1 | . 1 . Tunnel 1 | . 1 . Scanalyzers . | . . . Garrison Access . | . . . Data Cores Recovered . | . . . Used . | . . . Hacking Detections 3 | . 3 . Full Trace Events 1 | . 1 . Feedback Events . | . . . Feedback Blocked . | . . . Robot Schematics Acquired . | . . . Robots Built . | . . . Authchips . | . . . Time . | . . . Total Robot Build Rating . | . . . Part Schematics Acquired . | . . . Parts Built . | . . . Authchips . | . . . Time . | . . . Total Part Build Rating . | . . . Parts Repaired . | . . . Time . | . . . Parts Recycled . | . . . Recycled Matter . | . . . Retrieved Matter . | . . . Retrieved Components . | . . . Parts Scanalyzed . | . . . Part Schematics Acquired . | . . . Parts Damaged . | . . . Bothacking | -11 -10 -10 ------------ Run | Yrd Mat Sub Used RIF Installer . | . . . Robots Hacked . | . . . Non-combat . | . . . Combat . | . . . Robot Hacks Applied . | . . . Relay Couplers Released . | . . . Fabnet Peak Effective % . | . . . Robots Rewired . | . . . Allies Hacked . | . . . Hacks Repelled . | . . . Allies | -11 -10 -10 -------- Run | Yrd Mat Sub Total Allies . | . . . Largest Group . | . . . Highest-Rated Group . | . . . Highest-Rated Ally . | . . . Total Orders . | . . . Ally Attacks . | . . . Total Damage . | . . . Kills . | . . . Allies Corrupted . | . . . Allies Melted . | . . . Intel | -11 -10 -10 ------- Run | Yrd Mat Sub Active Infowar (turns) 1109 | . 24 1085 Structural 1109 | . 24 1085 Robot Analysis Total . | . . . Derelict Logs Recovered 1 | . . 1 Drone Launches . | . . . Drone Recoveries . | . . . Exploration | -11 -10 -10 ------------- Run | Yrd Mat Sub Turns Passed 1992 | 81 591 1320 Spaces Moved 1030 | 45 178 807 Core 8 | 8 . . Treads 854 | 37 178 639 Legs . | . . . Wheels 168 | . . 168 Hover . | . . . Flight . | . . . Fastest Speed 50 | 50 160 110 Average Speed 151 | 147 160 149 Slowest Speed 160 | 160 160 160 Overloaded Moves . | . . . Propulsion Burnouts . | . . . Robots Hopped . | . . . Potential Cave-ins . | . . . Cave-ins Triggered . | . . . Exploration Rate (%) 25 | 5 31 39 Regions Visited 2 Branch Regions 1 Pre-discovered Areas 1 | . 1 . Known Exits Taken . | . . . Unknown Exits Taken 2 | 1 1 . Scrap Searched 3 | . . 3 Spaces Dug 7 | . . 7 Terrain Destroyed 53 | . . 53 Melee . | . . . Projectile . | . . . AOE 53 | . . 53 Terrain Rammed . | . . . Walls Destroyed . | . . . Machines Disabled . | . . . Actions | -11 -10 -10 --------- Run | Yrd Mat Sub Total 1362 | 57 431 874 Wait 224 | . 219 5 Move 1028 | 44 177 807 Hop . | . . . Pick Up 22 | 6 4 12 Fast Attach 8 | 6 1 1 Attach 5 | . . 5 Detach . | . . . Swap 6 | . 1 5 Drop 13 | 1 2 10 Fire 56 | . 27 29 Melee . | . . . Ram . | . . . Kick . | . . . Crush . | . . . Escape Stasis . | . . . Rewire . | . . . Trap . | . . . Miscellaneous . | . . . Route ------- -11/Scrapyard -10/Materials (discovered 2 exits: [*Mat] / *Sub) -10/Subcaves History --------- Turn | Location | Event 22 | -11/Scrapyard | Discovered new exit (range 15) 82 | -11/Scrapyard | Entered Materials 314 | -10/Materials | Build established: Mutant 318 | -10/Materials | Discovered new exit (range 16) 541 | -10/Materials | Discovered new exit (range 10) 673 | -10/Materials | Entered Subcaves 674 | -10/Subcaves | Approached by a straggling Scientist 680 | -10/Subcaves | Learned Materials garrison access intel 1003 | -10/Subcaves | Visited 4L-MR0's lab 1031 | -10/Subcaves | Found Gun Armor 1150 | -10/Subcaves | A swath of the cavern ceiling suddenly collapsed 1239 | -10/Subcaves | Disturbed a concealed Subdweller 1244 | -10/Subcaves | Ambushed by Subdweller buried in earth 1334 | -10/Subcaves | Visited Clippyterm 1339 | -10/Subcaves | Learned Research security intel 1339 | -10/Subcaves | Learned Factory emergency access door positions 1752 | -10/Subcaves | Ambushed by Subdweller buried in earth 1754 | -10/Subcaves | Ambushed by Subdweller buried in earth 1758 | -10/Subcaves | Ambushed by Subdweller buried in earth 1763 | -10/Subcaves | Attached Gun Armor, gained temporary slots: Weapon x2 1775 | -10/Subcaves | Core integrity fell below 50% 1800 | -10/Subcaves | Shifting Twisted Machinery released Sub. Power Source 1805 | -10/Subcaves | Lost 4 parts (1n1u2w) 1847 | -10/Subcaves | Core integrity fell below 20% 1959 | -10/Subcaves | Shifting Twisted Machinery released Riot Gun 1993 | -10/Subcaves | Destroyed by 4F-IZH(R) with Subdweller Beam Cannon Last Messages --------------- Acquired Cobbler Unit. Subatomizers dissect the Ion Engine. Acquired Flamer. SB-QFV(R) destroyed. H0-OC7(R) destroyed. System corrupted: Matter fused (-7). Subatomizers dissect the Sub. Optics. Acquired 50 matter. Acquired 9 matter. Acquired Sub. Machine Gun. Dropped Sub. Monowheel. Subatomizers dissect the Sub. Optics. Acquired 10 matter. Subatomizers dissect the Sub. Optics. 4F-IZH(R): "SUBMAD!" Riot Gun falls loose from the Twisted Machinery. Flamer destroyed. Sub. Machine Gun destroyed. Lgt. Treads destroyed. Sub. Power Source destroyed. Map ----- +----------------------------------------------------+ | ????????????## ## ####???????????????? | | ????????????## ## ##???????????????? | | ????????????### ## ##???????????????? | | ????????????#### ## #####?????????????? | | ?????????????###### ^ # #?????????????? | | ??????????????#### ^ ##?????????????? | | ???????########### ##????????????? | | ???????############# ##????????????? | | ???????##"""""######## # ###???????????? | | ???????##""X""######### ##???????????? | | ???????##" "#####?##### # ### ####???????????? | | ??????##### ### ###??#### ######????????????????? | | ??????##### ## ###??## ##???????????????????? | | ??????## # ######## ##???????????????????? | | ??????## ####### ##???????????????????? | | ??????### #### ## ???????????????????? | | ??????### ### ## ???????????????????? | | ??????## ## ## ###????????????????????? | | ??????### # ##### ####????????????????????? | | ??????## ## # ## # ###?????????????????????? | | ????##### ## ####????????????????????? | | ???###### # ####???????????????????? | | ???### # ###### ###???????????????????? | | ???## ###### ##???????????????????? | | ??### ## ## ##?#####?????????????? | | ##### @ #### #?????????????? | | #### #### ##????????????? | | ## # ## ## ; R# ##? #?#?????? | | # #########;;; ## "?????? | | #######;##;; "" " ?????? | | &# = ##?##";;";## """ "* ""#??????? | | %=&* ##?#####";#"# # """""" #??????? | | & & ####?#### ##"" ###"" """????????? | | [ ####?##""####### ####""""[??"""###?? | | # ##???##""#"##### ###?"""? ???"""""?? | | ### # ##???##"""##### ##??"?????? """"#? | | ##### ###??#####"#"### ##????????? """?? | | ?#### ####??####"#"##### #?????????"""??? | | ???## ####??###""###"##?## ###?????????#"#??? | | ??## ######???####""#####??# #??????????## ##?? | | ??## ####????##" ###### ## #??????????# #?? | | ??### ##??????####""##?# #??????????# #?? | | ??## ##??########""### ### ##??????????# #?? | | ??## ##??######"##"##????## ######????## #?? | | ??### ##??## #""######## ##???# #?? | | ??### ##??### ########### #####! #?? | | ???# ######## #### ####### ## ##? | | ???## ######## ##### ##&& #? | | ???## ### ##### ##%[ #? | | ???## ##### # ## !=&! #? | +----------------------------------------------------+ Best States ------------- Heat Dissipation 25 Energy Generation 15 Energy Capacity 250 Matter Stores 300 Matter Capacity 300 Sight Range 16 Terrain Scan Density 10 Armor Coverage 60 Evasion (%) 40 Recoil Reduction 2 Item Schematics ----------------- None Robot Schematics ------------------ None Fabricated ------------ Nothing Repaired ---------- Nothing Alien Tech Used ----------------- None Achievements -------------- None Challenges ------------ None Game ------ Seed MiniMetaRigger Manual? 0 Play Time 00:22:45 Cumulative 98.3 hours Start 2025.05.25 @ 18:25:28 End 2025.05.25 @ 18:51:03 Sessions 1 Manual Loads 0 Difficulty Rogue Special Mode None Game No. 99 Rogue 99 Adventurer 0 Explorer 0 Win Type - Total 2 Types 1/0/0/1/0/0/0/0/0/0 Lore% 54 Gallery% 53 Achievement% 47 Wizard Run 0 Options --------- Layout 1 ASCII 0 Keyboard 1 Movement Arrows Keybinds 0 Fullscreen 1 Font 24/Smallcaps Map View 50x35 Zoom Use 29% Tactical HUD 0 Map Filters NONE Filters NONE Steam 1 RUN: d8af00b4-532d-444c-8fb1-9a1e51d81457